[Event "FRA-ch Teams Top 16-A 2022"]
[Site "Chartres"]
[Date "2022.06.09"]
[Round "1.23"]
[White "Daulyte-Cornette, Deimante"]
[Black "Auvray, Juliette"]
[Result "1-0"]
[ECO "B50"]
[WhiteElo "2372"]
[BlackElo "1970"]
[Annotator "TA"]
[PlyCount "69"]
[EventDate "2022.06.09"]
[EventType "team-tourn"]
[EventCountry "FRA"]
[SourceTitle "playchess.com"]
[Source "ChessBase"]
[SourceQuality "1"]
[TimeControl "40/5400+30:1800+30"]

{[%evp 9,69,1,6,12,51,46,46,45,70,35,58,46,85,58,137,147,158,177,181,164,254,238,290,291,314,308,310,312,304,289,301,306,308,303,298,302,414,376,389,369,343,322,413,416,410,409,400,404,413,415,649,643,647,655,791,748,29962,29963,5735,5173,29985,1313]} 1. e4 {[%emt 0:00:03]} c5 {[%emt 0:00:06]} 2. Nf3 {[%emt 0:00:09]} d6 {[%emt 0:00:19]} 3. Nc3 {[%emt 0:00:17]} Nf6 {[%emt 0:04:06]} 4. e5 {[%emt 0:00:21]} dxe5 {[%emt 0:04:54]} 5. Nxe5 {[%emt 0:00:07]} a6 {[%emt 0:07:39]} 6. g3 {[%emt 0:03:10] B50: Sicilian: 2...d6, Miscellaneous.} g6 {[%emt 0:05:50] 6...Qd6 is the modern continuation.} 7. Bg2 {[%emt 0:03:59]} Bg7 {[%emt 0:03:00]} 8. O-O {[%emt 0:01:06] White is slightly better.} O-O {[%emt 0:02:50]} 9. a4 {[%emt 0:03:18]} Qc7 {[%emt 0:04:16]} 10. Re1 {[%emt 0:04:00]} ({Of course not} 10. d4 cxd4 11. Qxd4 {[#]} Ng4 $1 $15) 10... e6 {[%emt 0:10:00] [#]} 11. d3 $146 {[%emt 0:09:12]} ({Predecessor:} 11. Nc4 Nc6 12. d3 Nh5 13. a5 Nd4 14. Ne4 e5 15. Nb6 Rb8 16. Nd5 Qd8 17. Nxc5 {1-0 (24) Cabrera Pino,A (2415)-Arias,L (2252) Cali 2001}) 11... Nh5 {[%emt 0:06:47]} (11... Nd5 $1 $14 12. Qe2 (12. Nxd5 exd5 13. Ng4 Be6 $11) 12... Nb4) 12. Qe2 $16 {[%emt 0:03:06] 0x0.00207b11ff99dp-1022s more active pieces.} Nc6 {[%emt 0:09:03]} 13. Nxc6 {[%emt 0:02:06]} bxc6 {[%emt 0:00:07]} 14. Ne4 $36 {[%emt 0:05:03][%mdl 2048] Black is under strong pressure.} Qb6 {[%emt 0:04:01]} (14... c4 $142 15. dxc4 f5) 15. a5 {[%emt 0:05:48]} Qa7 {[%emt 0:05:16]} 16. Be3 {[%emt 0:07:32]} Bd4 {[%emt 0:05:51]} 17. c3 {[%emt 0:02:21]} Bxe3 {[%emt 0:02:10]} 18. Qxe3 {[%emt 0:00:08]} Qc7 {[%emt 0:06:50]} 19. Nxc5 {[%emt 0:07:02]} Rb8 {[%emt 0:02:53]} 20. b4 {[%emt 0:00:51]} Nf6 {[%emt 0:01:50]} 21. Rab1 {[%emt 0:08:21]} Nd5 {[%emt 0:04:34]} 22. Qd2 {[%emt 0:00:46]} e5 {[%emt 0:02:49]} 23. c4 {[%emt 0:03:13]} Nf6 {[%emt 0:02:33]} 24. Qg5 {[%emt 0:06:19]} Nd7 {[%emt 0:02:46]} 25. Nxd7 {[%emt 0:00:12]} Qxd7 {[%emt 0:00:53]} 26. Qxe5 {[%emt 0:00:08]} Bb7 {[%emt 0:00:07]} 27. d4 {[%emt 0:00:34]} Rbd8 {[%emt 0:00:32]} 28. Rbd1 {[%emt 0:01:00]} Rfe8 {[%emt 0:00:54]} 29. Qf6 {[%emt 0:01:19]} Qc7 {[%emt 0:01:05]} (29... Rb8 $142 30. h4 h5) 30. h4 $18 {[%emt 0:00:45]} h5 {[%emt 0:00:36]} 31. g4 {[%emt 0:05:50] [#] Threatens to win with gxh5.} hxg4 {[%emt 0:00:07]} 32. h5 {[%emt 0:00:06] White threatens h6 and mate.} gxh5 {[%emt 0:00:51]} 33. Qg5+ {[%emt 0:00:08]} Kf8 {[%emt 0:00:22]} 34. Qxh5 {[%emt 0:00:08][%cal Rh5h8]} f6 {[%emt 0:00:47]} 35. Qh8+ {[%emt 0:00:16] Black did not feel at home in the position after the opening.  Weighted Error Value: White=0.05 (flawless) /Black=0.73} 1-0

[Event "FRA-ch Teams Top 16-A 2022"]
[Site "Chartres"]
[Date "2022.06.09"]
[Round "1.24"]
[White "Lemonnier, Remi"]
[Black "Martsynovskaya, Marina"]
[Result "1-0"]
[ECO "C54"]
[WhiteElo "2033"]
[BlackElo "2070"]
[Annotator "TA"]
[PlyCount "79"]
[EventDate "2022.06.09"]
[EventType "team-tourn"]
[EventCountry "FRA"]
[SourceTitle "playchess.com"]
[Source "ChessBase"]
[SourceQuality "1"]
[TimeControl "40/5400+30:1800+30"]

{[%evp 11,78,16,12,8,19,8,34,0,22,0,10,20,21,0,28,7,0,-27,0,0,0,-3,6,10,31,31,110,121,181,194,236,0,0,0,7,0,100,109,98,97,96,101,114,114,108,44,81,-154,-6,-70,0,0,0,0,75,0,1333,1301,1303,1210,1595,1410,29996,29997,29997,29998,29998,29999,29999]} 1. e4 {[%emt 0:00:05]} e5 {[%emt 0:00:11]} 2. Nf3 {[%emt 0:00:09]} Nc6 {[%emt 0:00:05]} 3. Bc4 {[%emt 0:00:05]} Bc5 {[%emt 0:01:12]} 4. c3 {[%emt 0:00:08]} Nf6 {[%emt 0:01:38]} 5. d3 {[%emt 0:00:06]} a6 {[%emt 0:00:46]} 6. Bb3 {[%emt 0:00:33]} d6 {[%emt 0:02:38]} 7. h3 {[%emt 0:01:34] C54: Giuoco Piano: 4 c3 Nf6, main lines with 5 d4 and 5 d3.} h6 {[%emt 0:04:20]} 8. Nbd2 {[%emt 0:01:27]} (8. O-O {with more complications.} O-O 9. Re1 Re8 10. Nbd2) 8... Qe7 {[%emt 0:01:30]} 9. Nf1 {[%emt 0:02:52] White is slightly better.} Be6 {[%emt 0:01:27]} 10. Ne3 {[%emt 0:03:35]} Qd7 {[%emt 0:02:33] [#]} 11. Bxe6 $146 {[%emt 0:09:21]} ({Predecessor:} 11. Bc2 d5 12. exd5 Nxd5 13. O-O O-O 14. Nc4 Bd6 15. Re1 f6 16. d4 exd4 17. Qd3 {1-0 (34) Talmazan,O-Gallardo de la Torre,Y Peniscola 2002}) 11... fxe6 {[%emt 0:08:56]} (11... Qxe6 {seems wilder.} 12. Nf5 O-O 13. O-O Ne7) 12. O-O {[%emt 0:06:41]} (12. b4 $5 {[%cal Rb4c5]} Ba7 13. a4 $11) 12... Ba7 {[%emt 0:05:35]} 13. Qc2 {[%emt 0:14:15]} O-O {[%emt 0:01:44]} 14. Ng4 {[%emt 0:16:25][%cal Be3g4,Bg4h2,Bh2g4,Bg4f6][%mdl 32]} Nh5 {[%emt 0:20:32]} 15. Be3 {[%emt 0:08:20]} Nf4 {[%emt 0:00:22][%cal Of4h3]} 16. Ngh2 {[%emt 0:10:06]} Qf7 {[%emt 0:05:46]} 17. Bxf4 {[%emt 0:03:22]} exf4 {[%emt 0:03:47]} 18. d4 {[%emt 0:00:33]} g5 {[%emt 0:03:47]} (18... Rfe8 $14) 19. e5 $16 {[%emt 0:03:36]} dxe5 {[%emt 0:02:28]} (19... Kg7 $16 {was worth a try.}) 20. Ng4 $18 {[%emt 0:02:43]} Kg7 {[%emt 0:00:17][%cal Re5d4]} 21. dxe5 {[%emt 0:00:26]} (21. Nfxe5 Qe8 22. Nxc6 Qxc6) (21. Ngxe5 $18 Nxe5 22. Nxe5) 21... Qf5 $11 {[%emt 0:00:20]} 22. Qb3 {[%emt 0:02:08]} Bb6 {[%emt 0:04:11]} 23. Rad1 {[%emt 0:01:33]} Rf7 {[%emt 0:12:49]} (23... Rad8 $11) 24. Rfe1 $16 {[%emt 0:08:58]} h5 {[%emt 0:11:37]} 25. Nf6 {[%emt 0:00:04] Pair of Knights!} g4 {[%emt 0:00:04]} 26. Nd4 {[%emt 0:00:54]} Nxd4 {[%emt 0:00:54]} 27. cxd4 {[%emt 0:00:03]} Rd8 {[%emt 0:00:41]} 28. Qc3 {[%emt 0:00:57] White is more active.} (28. Re4 $1 $16 {[%cal Re4f4]} Rxd4 29. Rexd4 (29. Rdxd4 Bxd4 30. Rxd4 Qxe5 $14) 29... Bxd4 30. Rxd4 Qxe5 31. Ne8+ Kh6 32. Qc3) 28... gxh3 {[%emt 0:02:08] [#]} 29. Qf3 $2 {[%emt 0:03:26]} (29. Re4 $1 $16 {[%cal Re4f4] And now Rxf4! would win.} Kg6 30. g3 (30. Qf3 Bxd4 31. Rexd4 Rxd4 $15) 30... fxg3 31. Qxg3+ Qg5 32. Kh2 Qxg3+ 33. fxg3) 29... Bxd4 {[%emt 0:01:41]} ({Better is} 29... Rxd4 $17 {Strongly threatening ...hxg2.} 30. Qxh3 Qxh3 31. gxh3 Kg6) 30. gxh3 {[%emt 0:00:04]} (30. Re4 $11 Kg6 31. Rexd4 (31. Rdxd4 Rxd4 32. Rxd4 Qxe5 $11) (31. Rxf4 Qxe5 32. Qd3+ Kh6 $17) 31... Rxd4 32. Rxd4 Qxe5 33. Rxf4 Rxf6 34. Rxf6+ Qxf6 35. Qxh3) 30... Rxf6 {[%emt 0:00:18]} (30... Kh6 $1 $15 31. Kh2 Rg7) 31. exf6+ $11 {[%emt 0:00:04]} Kxf6 {[%emt 0:00:07]} 32. Kh2 {[%emt 0:00:13]} e5 {[%emt 0:00:20] [#]} (32... Rd5 $11 {keeps the balance.}) 33. Qxb7 {[%emt 0:00:29]} (33. Rg1 $1 $16) 33... Bxf2 $2 {[%emt 0:01:18][%mdl 8192]} (33... Qc2 $11 34. Qg2 (34. Qxa6+ $2 Bb6 $19) 34... Qxf2 35. Qxf2 Bxf2 36. Rxd8 Bxe1) 34. Rxd8 $18 {[%emt 0:00:26]} ({And not} 34. Qxc7 Bg3+ 35. Kg1 (35. Kg2 f3+ 36. Kxg3 Qf4+ 37. Kf2 Qh2+ 38. Ke3 Rxd1 $11) 35... Re8 $11) 34... Bg3+ {[%emt 0:00:19]} 35. Kg1 {[%emt 0:00:35] Rf8+ would kill now.} Qc2 {[%emt 0:00:53]} 36. Qxa6+ {[%emt 0:00:36]} Ke7 {[%emt 0:00:43]} 37. Rxe5+ {[%emt 0:00:51] White mates.} Kxd8 {[%emt 0:00:03]} 38. Qa8+ {[%emt 0:00:35]} Kd7 {[%emt 0:00:04]} 39. Qe8+ {[%emt 0:00:17]} Kd6 {[%emt 0:00:05]} 40. Qe6# {[%emt 0:01:55] Weighted Error Value: White=0.33/Black=0.56} 1-0

[Event "FRA-ch Teams Top 16-A 2022"]
[Site "Chartres"]
[Date "2022.06.09"]
[Round "1.25"]
[White "Malakhov, Vladimir"]
[Black "Abasov, Nijat"]
[Result "0-1"]
[ECO "D30"]
[WhiteElo "2652"]
[BlackElo "2635"]
[Annotator "TA"]
[PlyCount "130"]
[EventDate "2022.06.09"]
[EventType "team-tourn"]
[EventCountry "FRA"]
[SourceTitle "playchess.com"]
[Source "ChessBase"]
[SourceQuality "1"]
[TimeControl "40/5400+30:1800+30"]

{[%evp 9,130,20,22,12,0,0,21,3,7,6,16,16,12,6,6,7,8,15,11,0,2,6,14,0,0,0,0,0,10,-10,0,-2,0,0,0,8,0,0,10,0,0,-29,-30,-55,31,20,6,13,18,0,0,0,0,-14,-14,-14,-13,-73,-78,-83,-66,-66,-68,-65,-76,-89,-78,-107,-106,-92,-104,-106,-85,-85,-85,-93,-93,-113,-42,-83,-83,-89,-79,-134,-134,-134,-134,-202,-202,-202,-177,-177,-134,-134,-134,-134,-134,-12832,-12833,-12831,-12831,-12837,-12837,-12838,-12839,-12839,-12839,-12840,-12839,-12840,-12840,-12841,-12841,-12841,-12842,-12843,-12843,-12844,-12844,-12849,-12849,-12850,-12845]} 1. Nf3 {[%emt 0:00:13]} d5 {[%emt 0:00:07]} 2. e3 {[%emt 0:01:12]} Nf6 {[%emt 0:00:19]} 3. c4 {[%emt 0:00:15]} e6 {[%emt 0:00:29]} 4. d4 {[%emt 0:01:33]} a6 {[%emt 0:01:24]} 5. b3 {[%emt 0:02:05]} c5 {[%emt 0:02:46]} 6. Bd3 {[%emt 0:05:04] D30: Queen's Gambit Declined: Systems without Nc3.} cxd4 {[%emt 0:01:42]} 7. exd4 {[%emt 0:00:07]} b6 $5 {[%emt 0:00:24][%mdl 4] Leaves trodden paths.} 8. O-O {[%emt 0:01:34] The position is equal.} Bb7 {[%emt 0:00:44]} 9. Bb2 {[%emt 0:00:52]} Be7 {[%emt 0:02:33]} 10. Nbd2 {[%emt 0:07:36]} Nbd7 {[%emt 0:01:38]} 11. Qe2 {[%emt 0:01:51]} O-O {[%emt 0:00:28]} 12. Rac1 {[%emt 0:03:15]} dxc4 {[%emt 0:08:58]} 13. bxc4 {[%emt 0:03:34] [#]} Qc7 $146 {[%emt 0:04:39]} ({Predecessor:} 13... b5 14. c5 Bd5 15. a4 bxa4 16. Ra1 Bc6 17. Nc4 Nd5 18. Nfe5 Nxe5 19. Nxe5 Bb5 20. Bxb5 axb5 21. Qxb5 {½-½ (60) Balacek,T (2334)-Zeman,M (2247) Czech Republic 2019}) 14. Ng5 {[%emt 0:21:34][%cal Od4d5]} Qf4 {[%emt 0:19:02]} 15. Nh3 {[%emt 0:03:37]} Qg4 {[%emt 0:03:18][%csl Gb7][%cal Rg4g2]} 16. f3 {[%emt 0:00:15]} Qh5 {[%emt 0:00:20]} 17. Nf2 {[%emt 0:05:00]} Rfe8 {[%emt 0:06:26]} 18. Nde4 {[%emt 0:04:47]} Rac8 {[%emt 0:01:09]} 19. Rb1 {[%emt 0:05:09]} Nxe4 {[%emt 0:12:21]} 20. Nxe4 {[%emt 0:00:14]} Bc6 {[%emt 0:02:32]} 21. Bc1 {[%emt 0:05:32]} f5 {[%emt 0:04:25]} 22. Nc3 {[%emt 0:03:37]} Bd6 {[%emt 0:00:43][%cal Be7d6,Bd6c7,Bc7a5,Ba5b6,Bb6d4][%mdl 32]} 23. f4 {[%emt 0:01:40]} Qg6 {[%emt 0:01:36]} 24. Bd2 {[%emt 0:04:43]} Bc7 {[%emt 0:01:22]} 25. Qf2 {[%emt 0:02:23]} Nf6 {[%emt 0:00:23]} 26. h3 {[%emt 0:00:25]} b5 {[%emt 0:02:23]} (26... Rcd8 $1 $15 27. Ne2 (27. Be3 Bxf4 28. d5 Bxe3 $17) 27... Ne4 28. Bxe4 Bxe4) 27. cxb5 $14 {[%emt 0:02:29]} axb5 {[%emt 0:00:05]} 28. Bxb5 {[%emt 0:03:47]} Ba5 {[%emt 0:01:44]} 29. Bxc6 {[%emt 0:00:34]} Rxc6 {[%emt 0:00:07]} 30. Qf3 {[%emt 0:00:40]} Rec8 {[%emt 0:01:22][%cal Ra5c3]} 31. Rb8 {[%emt 0:03:38] aiming for Qxc6.} Qe8 {[%emt 0:01:06]} 32. Rxc8 {[%emt 0:00:28]} Qxc8 {[%emt 0:00:25]} 33. Nb1 {[%emt 0:00:27]} (33. Nb5 $1 $11 Qa6 34. Bxa5 Qxb5 35. Bb4) 33... Bb6 $36 {[%emt 0:00:27][%mdl 2048] Black is in control.} 34. Qd3 {[%emt 0:03:26] [#]} Qa6 $1 {[%emt 0:00:47]} 35. Qxa6 {[%emt 0:00:52]} Bxd4+ {[%emt 0:00:05][%mdl 64] Discovered Attack} 36. Kh2 {[%emt 0:00:28]} Rxa6 {[%emt 0:00:04]} 37. Bc3 {[%emt 0:00:35]} Bc5 {[%emt 0:03:58] Black is more active.} 38. Bxf6 {[%emt 0:00:15]} gxf6 {[%emt 0:00:06][%mdl 4096] Endgame KRB-KRN} 39. a3 {[%emt 0:00:10]} Kf7 {[%emt 0:02:50]} 40. Rf3 {[%emt 0:00:49]} Ra4 {[%emt 0:01:07]} 41. g3 {[%emt 0:08:09]} h5 {[%emt 0:04:56]} 42. Rc3 {[%emt 0:02:34]} Bd6 {[%emt 0:02:12][%cal Oh5h4]} 43. Rd3 {[%emt 0:00:11]} Ke7 {[%emt 0:00:39]} ({Better is} 43... Ra6 $17 {[%cal Oh5h4]} 44. Nd2 Bxa3) 44. h4 {[%emt 0:02:08]} Ra5 {[%emt 0:08:34]} 45. Nd2 {[%emt 0:01:35][%cal Od3d6] Strongly threatening Rxd6!} Rc5 {[%emt 0:02:31]} (45... Bxa3 $2 46. Nc4 Bb4 47. Nxa5 Bxa5 48. Rb3 $16) (45... Rxa3 $2 46. Rxd6 $1 {[%mdl 512]} Ra2 47. Rd3 $18) 46. Nf1 {[%emt 0:03:12]} (46. a4 $142) 46... Rc2+ $1 {[%emt 0:01:06]} 47. Kh3 {[%emt 0:00:14]} Ra2 {[%emt 0:01:15]} 48. Ne3 {[%emt 0:00:10]} (48. Nd2 $17) 48... Bxa3 $19 {[%emt 0:01:10]} ({Stronger than} 48... Rxa3 49. Rxd6 Rxe3 50. Ra6 $17) 49. Nc2 {[%emt 0:01:43]} Bc5 {[%emt 0:04:01]} ({And not} 49... Rxc2 50. Rxa3 Rd2 51. Ra6 $15) 50. Nd4 {[%emt 0:00:04]} Bxd4 {[%emt 0:03:35]} 51. Rxd4 {[%emt 0:00:04] KR-KR} e5 $1 {[%emt 0:00:07][%cal Be6e5,Be5e4,Be4e3,Be3e2][%mdl 32]} 52. Rd5 {[%emt 0:02:42] [#]} e4 {[%emt 0:15:57]} 53. Rxf5 $2 {[%emt 0:00:09][%mdl 8192] This move loses the game for White.} (53. Rb5 $17) 53... e3 {[%emt 0:00:05] ( -> ...e2). Black is clearly winning.} 54. Rb5 {[%emt 0:00:02] [#]} Rf2 $1 {[%emt 0:00:08]} 55. Rb4 {[%emt 0:12:59]} f5 {[%emt 0:01:27]} 56. Rb5 {[%emt 0:00:03]} e2 {[%emt 0:00:09]} 57. Re5+ {[%emt 0:00:03]} Kd6 {[%emt 0:00:26]} 58. g4 {[%emt 0:01:26]} hxg4+ {[%emt 0:00:10]} 59. Kg3 {[%emt 0:00:02]} Rf3+ {[%emt 0:00:05]} 60. Kg2 {[%emt 0:00:02]} Rxf4 {[%emt 0:00:14]} 61. Rxe2 {[%emt 0:00:02]} Rf3 {[%emt 0:01:05]} 62. Re8 {[%emt 0:00:21]} Rh3 {[%emt 0:00:26]} 63. Rh8 {[%emt 0:00:02]} Ke5 {[%emt 0:00:21]} 64. h5 {[%emt 0:02:25]} Kf6 {[%emt 0:00:52]} 65. h6 {[%emt 0:00:04]} Ke5 {[%emt 0:05:05] Weighted Error Value: White=0.18 (very precise) /Black=0.06 (flawless)} 0-1

[Event "FRA-ch Teams Top 16-A 2022"]
[Site "Chartres"]
[Date "2022.06.09"]
[Round "1.26"]
[White "Santos Ruiz, Miguel"]
[Black "Piorun, Kacper"]
[Result "0-1"]
[ECO "C67"]
[WhiteElo "2586"]
[BlackElo "2635"]
[Annotator "TA"]
[PlyCount "86"]
[EventDate "2022.06.09"]
[EventType "team-tourn"]
[EventCountry "FRA"]
[SourceTitle "playchess.com"]
[Source "ChessBase"]
[SourceQuality "1"]
[TimeControl "40/5400+30:1800+30"]

{[%evp 12,86,25,18,23,31,33,35,37,29,27,20,22,15,15,10,16,25,22,13,38,18,38,23,52,18,23,10,16,24,24,17,12,0,0,-35,-33,-23,-21,-15,-18,-28,-20,-21,-17,-16,-23,-76,-76,-71,-75,-76,-76,-350,-365,-366,-371,-364,-291,-350,-347,-333,-265,-6548,-6535,-526,-381,-29989,-29990,-29990,-29991,-29991,-29992,-29992,-29993,-29995,-29993]} 1. e4 {[%emt 0:00:03]} e5 {[%emt 0:00:20]} 2. Nf3 {[%emt 0:00:07]} Nc6 {[%emt 0:00:04]} 3. Bb5 {[%emt 0:00:43]} Nf6 {[%emt 0:00:32]} 4. O-O {[%emt 0:00:16]} Nxe4 {[%emt 0:00:10]} 5. Re1 {[%emt 0:00:18]} Nd6 {[%emt 0:00:07]} 6. Nxe5 {[%emt 0:00:06]} Be7 {[%emt 0:00:11]} 7. Bf1 {[%emt 0:00:07]} O-O {[%emt 0:00:22] C67: Ruy Lopez: Berlin Defence: 4 0-0 Nxe4.} 8. d4 {[%emt 0:00:08]} Nf5 {[%emt 0:00:33]} 9. Nf3 {[%emt 0:00:50]} d5 {[%emt 0:00:06] White is slightly better.} 10. a4 {[%emt 0:00:43]} Bd6 {[%emt 0:08:32] [#]} 11. h3 $146 {[%emt 0:08:21]} ({Predecessor:} 11. c3 a6 12. Nbd2 Re8 13. a5 f6 14. h3 Rxe1 15. Nxe1 Qd7 16. Nd3 Qf7 17. Nb3 {½-½ (33) Volkov,E (2340)-Romm,M (2452) ICCF email 2015}) 11... Qf6 {[%emt 0:09:40][%cal Rf5d4]} 12. c3 {[%emt 0:12:37]} h6 {[%emt 0:07:43]} 13. Nbd2 {[%emt 0:16:36]} Nfe7 {[%emt 0:08:01]} 14. b4 {[%emt 0:09:20]} Ng6 {[%emt 0:01:46]} 15. g3 {[%emt 0:00:25]} Bf5 {[%emt 0:03:34]} 16. Qb3 {[%emt 0:08:00]} (16. Nh2 {looks sharper.} Nxb4 17. cxb4 Qxd4 18. Ra2) 16... Nce7 {[%emt 0:08:49]} 17. Ba3 {[%emt 0:03:57]} Rac8 {[%emt 0:10:51]} 18. b5 {[%emt 0:04:11]} c5 {[%emt 0:01:15]} 19. bxc6 {[%emt 0:02:41]} (19. h4 {with more complications.} Rfd8 20. dxc5 Bxc5 21. Bxc5 Rxc5 22. Qb4) 19... Rxc6 {[%emt 0:07:53]} (19... bxc6 {feels hotter.} 20. Re3 Rb8 21. Qa2 Bc8) 20. Qxb7 {[%emt 0:09:36]} (20. Bxd6 {is more complex.} Qxd6 21. Qxb7 Rxc3 22. Qxa7 Nc6 23. Qa6) 20... Rxc3 {[%emt 0:02:39]} 21. Bxd6 {[%emt 0:00:18]} Qxd6 {[%emt 0:00:04]} 22. Qxa7 {[%emt 0:02:38]} Be4 {[%emt 0:02:11]} 23. Nxe4 {[%emt 0:05:32]} dxe4 {[%emt 0:00:20]} 24. Ne5 {[%emt 0:00:06]} e3 {[%emt 0:05:21]} 25. Rxe3 {[%emt 0:10:06]} Rxe3 {[%emt 0:00:07][%mdl 64] Remove Defender} 26. fxe3 {[%emt 0:02:13]} Nxe5 {[%emt 0:00:06]} 27. dxe5 {[%emt 0:00:01]} Qxe5 {[%emt 0:00:08]} 28. Qd4 {[%emt 0:00:02]} Qxg3+ {[%emt 0:00:08]} 29. Bg2 {[%emt 0:00:13]} (29. Kh1 $1 $11 {keeps the balance.}) 29... Ng6 $1 $17 {[%emt 0:23:27] Threatens to win with ...Nh4.} 30. Kh1 {[%emt 0:05:16]} Re8 $1 {[%emt 0:00:30]} 31. a5 {[%emt 0:00:30]} Rxe3 $40 {[%emt 0:00:00][%mdl 128] Strongly threatening ...Nf4. Black has strong attack.} 32. a6 $2 {[%emt 0:00:00][%mdl 8192] [#] White does not recover from this.} (32. Qd8+ $17 Kh7 33. Qd5) 32... Nf4 $1 $19 {[%emt 0:00:00][%csl Gf4][%cal Rg3g2]} 33. Qd2 {[%emt 0:00:02] a7 is the strong threat.} Nxg2 {[%emt 0:00:00]} ({Much less strong is} 33... Re2 {[#]} 34. Qxe2 $3 {[%mdl 512]} Nxe2 35. a7 $18) 34. a7 {[%emt 0:00:24]} Qxh3+ {[%emt 0:00:00]} 35. Kg1 {[%emt 0:00:01]} Nf4 {[%emt 0:00:00]} 36. a8=Q+ {[%emt 0:00:02]} Kh7 {[%emt 0:00:00] ( -> ...Rg3+). Dancing on a razor blade.} 37. Qh2 {[%emt 0:01:57]} (37. Qxe3 Qxe3+ 38. Kh1) 37... Qg4+ {[%emt 0:00:00]} 38. Kh1 {[%emt 0:00:30]} Re2 {[%emt 0:00:00]} 39. Qg8+ $2 (39. Qxe2 $19 Nxe2 40. Qa3) 39... Kxg8 {[%emt 0:00:00] Black mates.} 40. Ra8+ {[%emt 0:00:33]} Kh7 {[%emt 0:00:00][%cal Bg8h7,Bh7g6,Bg6f5,Bf5e5][%mdl 32]} 41. Rh8+ {[%emt 0:30:02]} Kg6 {[%emt 0:27:06]} (41... Kxh8 42. Qxh6+ Kg8 43. Qxg7+ Kxg7 $11) 42. Rxh6+ {[%emt 0:00:12]} Kf5 {[%emt 0:01:24]} ({And not} 42... gxh6 43. Qxh6+ Kf5 44. Qg6+ fxg6 $11) 43. Rf6+ {[%emt 0:00:03]} Ke5 {[%emt 0:00:23] Weighted Error Value: White=0.46/Black=0.06 (flawless)} 0-1

[Event "FRA-ch Teams Top 16-A 2022"]
[Site "Chartres"]
[Date "2022.06.09"]
[Round "1.27"]
[White "Van Foreest, Lucas"]
[Black "Parligras, Mircea-Emilian"]
[Result "1/2-1/2"]
[ECO "E15"]
[WhiteElo "2572"]
[BlackElo "2583"]
[Annotator "TA"]
[PlyCount "79"]
[EventDate "2022.06.09"]
[EventType "team-tourn"]
[EventCountry "FRA"]
[SourceTitle "playchess.com"]
[Source "ChessBase"]
[SourceQuality "1"]
[TimeControl "40/5400+30:1800+30"]

{[%evp 19,79,8,5,-36,-20,-24,0,-26,0,0,0,-30,0,-62,-67,-63,-60,-133,-129,-138,-100,-122,-90,-138,-133,-138,-10,-11,-18,-15,-5,-20,-4,-7,0,0,0,0,0,0,0,0,-6,-10,-9,-38,-9,-15,-10,-8,-7,-7,-7,-7,-7,-39,-39,-39,-39,-39,-39,-39]} 1. d4 {[%emt 0:00:10]} Nf6 {[%emt 0:00:14]} 2. c4 {[%emt 0:00:10]} e6 {[%emt 0:00:08]} 3. Nf3 {[%emt 0:00:09]} d5 {[%emt 0:00:22]} 4. g3 {[%emt 0:00:04]} Bb4+ {[%emt 0:00:24]} 5. Bd2 {[%emt 0:00:04]} Be7 {[%emt 0:00:38]} 6. Bg2 {[%emt 0:00:09]} O-O {[%emt 0:00:23]} 7. O-O {[%emt 0:00:03]} c6 {[%emt 0:00:21]} 8. Qc2 {[%emt 0:00:05]} b6 {[%emt 0:01:26]} 9. Rd1 {[%emt 0:03:53]} Ba6 {[%emt 0:04:53]} 10. b3 {[%emt 0:09:13]} Nbd7 {[%emt 0:00:16]} 11. Nc3 {[%emt 0:03:34] E15: Queen's Indian: 4 g3 sidelines, 4 g3 Ba6 and 4 g3 Bb7 early deviations.} dxc4 {[%emt 0:02:57] has lost popularity (11...Rc8).} 12. e4 {[%emt 0:00:57]} h6 {[%emt 0:08:08] [#]} 13. h4 $146 {[%emt 0:00:11] The position is equal.} (13. Bf4 $5 {[%cal Rb3c4]}) ({Predecessor:} 13. h3 Qc8 14. Be3 Rd8 15. Nd2 b5 16. bxc4 bxc4 17. Rab1 {½-½ (17) Bajarani,U (2471)-Abasov,N (2516) Baku 2014}) 13... b5 {[%emt 0:20:32]} 14. bxc4 {[%emt 0:02:05]} bxc4 {[%emt 0:00:12]} 15. Bh3 {[%emt 0:09:25]} Re8 {[%emt 0:10:48]} 16. g4 {[%emt 0:07:15]} (16. Rab1 $11) 16... Nh7 $15 {[%emt 0:01:01]} 17. Bg2 {[%emt 0:03:25]} Bxh4 {[%emt 0:04:06]} 18. Nxh4 {[%emt 0:00:37]} (18. Qa4 $15 Bb7 19. Qxc4) 18... Qxh4 $17 {[%emt 0:00:06]} 19. f3 {[%emt 0:08:47]} e5 {[%emt 0:04:30]} 20. d5 {[%emt 0:02:10]} Qf6 {[%emt 0:02:28]} 21. Qa4 {[%emt 0:16:09] [#]} ({White should play} 21. dxc6 Qxc6 22. Qa4 Qc5+ 23. Kh2) 21... Bb7 $1 {[%emt 0:00:31] Threatens to win with ...Nb6.} 22. dxc6 {[%emt 0:05:51]} Qxc6 {[%emt 0:02:46]} ({Better is} 22... Bxc6 $17 23. Qxc4 Ng5 24. Bxg5 hxg5) 23. Qxc6 $11 {[%emt 0:00:30]} Bxc6 {[%emt 0:00:04]} 24. Bf1 {[%emt 0:00:11]} Ng5 {[%emt 0:05:17]} 25. Kf2 {[%emt 0:00:40]} Rab8 {[%emt 0:07:09]} 26. Bxc4 {[%emt 0:00:33]} Rec8 {[%emt 0:03:54]} 27. Rac1 {[%emt 0:00:06]} Nc5 {[%emt 0:03:33]} 28. Be3 {[%emt 0:00:59] A strong pair of Bishops.} Nge6 {[%emt 0:07:52]} 29. Ne2 {[%emt 0:06:34]} Kf8 {[%emt 0:05:04]} 30. Rd2 {[%emt 0:00:05]} a5 {[%emt 0:02:11]} 31. Rdc2 {[%emt 0:01:32]} Bd7 {[%emt 0:00:33]} 32. Rc3 {[%emt 0:03:54]} (32. Rd2 {looks sharper.} Ke7 33. Rcc2 Na4 34. Bb3) 32... Na4 {[%emt 0:00:58]} (32... Ke7 $5 {[%cal Rc5a4]}) 33. Bxe6 {[%emt 0:01:30]} Bxe6 {[%emt 0:00:32]} 34. Rxc8+ {[%emt 0:00:07]} Rxc8 {[%emt 0:01:11]} 35. Rxc8+ {[%emt 0:00:05]} Bxc8 {[%emt 0:00:04] KBN-KBN} 36. Bd2 {[%emt 0:00:07]} Be6 {[%emt 0:00:21]} 37. Bxa5 {[%emt 0:00:03]} Bxa2 {[%emt 0:00:07] Black is slightly better.} 38. Nc3 {[%emt 0:00:01]} Nxc3 {[%emt 0:00:10]} 39. Bb4+ {[%emt 0:00:02]} Ke8 {[%emt 0:00:10]} 40. Bxc3 {[%emt 0:00:03] Weighted Error Value: White=0.15 (very precise) /Black=0.14 (very precise)} 1/2-1/2